fUSD/lending_fUSD_20250607
["ID","MTS","AMOUNT","RATE_DAILY","PERIOD"]
[364867440,1749282693678,-2996.31,0.00028054,5]
[364867441,1749282693688,-930.43,0.00028054,5]
[364867442,1749282693700,-264.48206549,0.00028054,5]
[364867443,1749282693710,-7442.14,0.00028054,5]
[364867444,1749282693720,-480.0,0.00028054,5]
[364867445,1749282693730,-5891.72,0.00028054,5]
[364867446,1749282693740,-4307.55,0.00028054,5]
[364867447,1749282693751,-956.19,0.00028054,5]
[364867448,1749282693762,-480.0,0.00028054,5]
[364867449,1749282693772,-798.07,0.00028054,5]
[364867450,1749282693782,-1206.45,0.00028054,5]
[364867451,1749282693792,-480.0,0.00028054,5]
[364867452,1749282693803,-480.0,0.00028054,5]
[364867453,1749282693813,-480.0,0.00028054,5]
[364867454,1749282693823,-1267.21,0.00028054,5]
[364867455,1749282693834,-480.0,0.00028054,5]
[364867456,1749282693845,-5617.32,0.00028054,5]
[364867457,1749282693855,-798.33,0.00028054,5]
[364867458,1749282693865,-480.0,0.00028054,5]
[364867459,1749282693878,-156.17312556,0.00028054,5]
[364867460,1749282693891,-1111.08,0.00028054,5]
[364867461,1749282693902,-494.44659675,0.00028054,5]
[364867462,1749282693912,-495.44638242,0.00028054,5]
[364867463,1749282693923,-1613.36,0.00028054,5]
[364867464,1749282693934,-480.0,0.00028054,5]
[364867465,1749282693945,-480.0,0.00028054,5]
[364867466,1749282693955,-665.13,0.00028054,5]
[364867467,1749282693966,-984.27,0.00028054,5]
[364867468,1749282693976,-488.56959636,0.00028054,5]
[364867469,1749282693986,-10955.06,0.00028054,5]
[364867470,1749282693997,-8194.39,0.00028054,5]
[364867471,1749282694007,-480.0,0.00028054,5]
[364867472,1749282694017,-835.03,0.00028054,5]
[364867473,1749282694028,-3592.23,0.00028054,5]
[364867474,1749282694038,-675.89,0.00028054,5]
[364867475,1749282694048,-480.0,0.00028054,5]
[364867476,1749282694058,-1342.98,0.00028054,5]
[364867477,1749282694069,-3803.92,0.00028054,5]
[364867478,1749282694079,-2538.94,0.00028054,5]
[364867479,1749282694090,-1427.01,0.00028054,5]
[364867480,1749282694100,-1719.89,0.00028054,5]
[364867481,1749282694110,-1821.11,0.00028054,5]
[364867482,1749282694120,-480.0,0.00028054,5]
[364867483,1749282694130,-480.0,0.00028054,5]
[364867484,1749282694141,-1325.93,0.00028054,5]
[364867485,1749282694151,-480.0,0.00028054,5]
[364867486,1749282694161,-1072.0,0.00028054,5]
[364867487,1749282694172,-1892.42,0.00028054,5]
[364867488,1749282694182,-1000.0,0.00028054,5]
[364867489,1749282694193,-63362.5,0.00028054,5]
[364867490,1749282694204,-1666.49,0.00028054,5]
[364867491,1749282694214,-769.25,0.00028054,5]
[364867492,1749282694225,-480.0,0.00028054,5]
[364867493,1749282694235,-622.41,0.00028054,5]
[364867494,1749282694245,-480.0,0.00028054,5]
[364867495,1749282694255,-480.0,0.00028054,5]
[364867496,1749282694266,-802.83,0.00028054,5]
[364867497,1749282694276,-3297.59,0.00028054,5]
[364867498,1749282694286,-1298.4,0.00028054,5]
[364867499,1749282694297,-1257.45,0.00028054,5]
[364867500,1749282694307,-619.63,0.00028054,5]
[364867501,1749282694317,-480.0,0.00028054,5]
[364867502,1749282694328,-2010.42,0.00028054,5]
[364867503,1749282694338,-1795.02,0.00028054,5]
[364867504,1749282694348,-2147.53,0.00028054,2]
[364867505,1749282694358,-480.0,0.00028054,5]
[364867506,1749282694368,-2644.51,0.00028054,5]
[364867507,1749282694379,-1671.91,0.00028054,5]
[364867508,1749282694389,-480.0,0.00028054,5]
[364867509,1749282694399,-480.0,0.00028054,5]
[364867510,1749282694410,-2770.74,0.00028054,5]
[364867511,1749282694421,-3633.12,0.00028054,5]
[364867512,1749282694431,-480.0,0.00028054,5]
[364867513,1749282694442,-480.0,0.00028054,5]
[364867514,1749282694452,-6110.32,0.00028054,5]
[364867515,1749282694462,-1513.66,0.00028054,5]
[364867516,1749282694473,-480.0,0.00028054,5]
[364867517,1749282694484,-1788.9,0.00028054,5]
[364867518,1749282694495,-814.18,0.00028054,5]
[364867519,1749282694505,-480.0,0.00028054,5]
[364867520,1749282694516,-11876.34,0.00028054,5]
[364867521,1749282694526,-959.52,0.00028054,5]
[364867522,1749282694537,-2522.98,0.00028054,5]
[364867523,1749282694547,-480.0,0.00028054,5]
[364867524,1749282694558,-1093.12,0.00028054,5]
[364867525,1749282694568,-480.0,0.00028054,5]
[364867526,1749282694579,-1813.84,0.00028054,5]
[364867527,1749282694590,-481.61,0.00028054,5]
[364867528,1749282694600,-480.0,0.00028054,5]
[364867529,1749282694609,-6018.65,0.00028054,5]
[364867530,1749282694620,-1581.96,0.00028054,5]
[364867531,1749282694630,-480.0,0.00028054,5]
[364867532,1749282694640,-855.47,0.00028054,5]
[364867533,1749282694650,-480.0,0.00028054,5]
[364867534,1749282694660,-480.0,0.00028054,5]
[364867535,1749282694671,-480.0,0.00028054,5]
[364867536,1749282694681,-480.0,0.00028054,5]
[364867537,1749282694692,-5571.7,0.00028054,5]
[364867538,1749282694703,-1003.3,0.00028054,5]
[364867539,1749282694714,-1086.55,0.00028054,5]
[364867540,1749282694724,-1345.91,0.00028054,5]
[364867541,1749282694735,-1327.04,0.00028054,5]
[364867542,1749282694745,-1675.33,0.00028054,5]
[364867543,1749282694756,-2008.91,0.00028054,5]
[364867544,1749282694766,-490.00415254,0.00028054,5]
[364867545,1749282694777,-480.0,0.00028054,5]
[364867546,1749282694787,-480.0,0.00028054,5]
[364867547,1749282694797,-734.71,0.00028054,5]
[364867548,1749282694809,-1529.93,0.00028054,5]
[364867549,1749282694819,-480.0,0.00028054,5]
[364867550,1749282694830,-480.0,0.00028054,5]
[364867551,1749282694842,-480.0,0.00028054,5]
[364867552,1749282694853,-596.66,0.00028054,5]
[364867553,1749282694864,-480.0,0.00028054,5]
[364867554,1749282694878,-1453.1,0.00028054,5]
[364867555,1749282694889,-3865.55,0.00028054,5]
[364867556,1749282694900,-3264.83,0.00028054,5]
[364867557,1749282694910,-967.54,0.00028054,5]
[364867558,1749282694920,-498.05041231,0.00028054,5]
[364867559,1749282694930,-480.0,0.00028054,5]
[364867560,1749282694940,-871.56,0.00028054,5]
[364867561,1749282694951,-1458.57,0.00028054,5]
[364867562,1749282694962,-749.45,0.00028054,5]
[364867563,1749282694973,-480.0,0.00028054,5]
[364867564,1749282694984,-480.0,0.00028054,5]
[364867565,1749282694994,-915.39,0.00028054,5]
[364867566,1749282695005,-480.0,0.00028054,5]
[364867567,1749282695015,-4023.49,0.00028054,5]
[364867568,1749282695026,-1170.49,0.00028054,5]
[364867569,1749282695036,-480.0,0.00028054,5]
[364867570,1749282695048,-480.0,0.00028054,5]
[364867571,1749282695059,-742.56,0.00028054,5]
[364867572,1749282695069,-594.14,0.00028054,5]
[364867573,1749282695080,-1731.59,0.00028054,5]
[364867574,1749282695091,-480.0,0.00028054,5]
[364867575,1749282695102,-480.0,0.00028054,5]
[364867576,1749282695113,-609.92144595,0.00028054,5]
[364867577,1749282695124,-1143.16,0.00028054,5]
[364867578,1749282695134,-480.0,0.00028054,5]
[364867579,1749282695145,-2029.78,0.00028054,5]
[364867580,1749282695155,-2000.65,0.00028054,5]
[364867581,1749282695166,-683.94,0.00028054,5]
[364867582,1749282695176,-480.0,0.00028054,5]
[364867583,1749282695187,-1386.31,0.00028054,5]
[364867584,1749282695198,-485.39,0.00028054,5]
[364867585,1749282695209,-747.9,0.00028054,5]
[364867586,1749282695219,-1122.69,0.00028054,5]
[364867587,1749282695230,-480.0,0.00028054,5]
[364867588,1749282695240,-480.0,0.00028054,5]
[364867589,1749282695251,-788.44,0.00028054,5]
[364867590,1749282695262,-480.0,0.00028054,5]
[364867591,1749282695273,-494.08,0.00028054,5]
[364867592,1749282695284,-518.65,0.00028054,5]
[364867593,1749282695295,-492.12,0.00028054,5]
[364867594,1749282695306,-1941.16,0.00028054,5]
[364867595,1749282695316,-480.0,0.00028054,5]
[364867596,1749282695326,-506.56028646,0.00028054,5]
[364867597,1749282695337,-480.0,0.00028054,5]
[364867598,1749282695347,-480.0,0.00028054,5]
[364867599,1749282695358,-480.0,0.00028054,5]
[364867600,1749282695369,-499.42,0.00028054,5]
[364867601,1749282695379,-480.0,0.00028054,5]
[364867602,1749282695390,-2403.78,0.00028054,5]
[364867603,1749282695401,-480.0,0.00028054,5]
[364867604,1749282695412,-757.09,0.00028054,5]
[364867605,1749282695422,-957.28,0.00028054,5]
[364867606,1749282695432,-480.0,0.00028054,5]
[364867607,1749282695443,-697.95,0.00028054,5]
[364867608,1749282695454,-575.71,0.00028054,5]
[364867609,1749282695464,-480.0,0.00028054,5]
[364867610,1749282695474,-748.21,0.00028054,5]
[364867611,1749282695485,-480.0,0.00028054,5]
[364867612,1749282695496,-607.22,0.00028054,5]
[364867613,1749282695506,-480.0,0.00028054,5]
[364867614,1749282695517,-5005.59,0.00028054,5]
[364867615,1749282695526,-10865.99,0.00028054,5]
[364867616,1749282695537,-4322.98,0.00028054,5]
[364867617,1749282695547,-1739.86,0.00028054,5]
[364867618,1749282695558,-630.74,0.00028054,5]
[364867619,1749282695569,-480.0,0.00028054,5]
[364867620,1749282695579,-480.0,0.00028054,5]
[364867621,1749282695589,-480.0,0.00028054,5]
[364867622,1749282695600,-480.0,0.00028054,5]
[364867623,1749282695610,-480.0,0.00028054,5]
[364867624,1749282695620,-1078.23,0.00028054,5]
[364867625,1749282695630,-480.0,0.00028054,5]
[364867626,1749282695640,-1387.38,0.00028054,5]
[364867627,1749282695651,-689.06,0.00028054,5]
[364867628,1749282695662,-480.0,0.00028054,5]
[364867629,1749282695672,-16410.82,0.00028054,5]
[364867630,1749282695682,-1650.11,0.00028054,5]
[364867631,1749282695692,-7442.43,0.00028054,5]
[364867632,1749282695704,-3593.96,0.00028054,5]
[364867633,1749282695714,-590.0,0.00028054,5]
[364867634,1749282695725,-749.65,0.00028054,5]
[364867635,1749282695735,-2124.13,0.00028054,5]
[364867636,1749282695745,-816.17,0.00028054,5]
[364867637,1749282695755,-665.9,0.00028054,5]
[364867638,1749282695765,-2227.22,0.00028054,5]
[364867639,1749282695775,-1352.48,0.00028054,5]
[364867640,1749282695786,-480.0,0.00028054,5]
[364867641,1749282695796,-507.82,0.00028054,5]
[364867642,1749282695806,-480.0,0.00028054,5]
[364867643,1749282695817,-1744.26,0.00028054,5]
[364867644,1749282695827,-480.0,0.00028054,5]
[364867645,1749282695838,-3612.7,0.00028054,5]
[364867646,1749282695848,-480.0,0.00028054,5]
[364867647,1749282695858,-480.0,0.00028054,5]
[364867648,1749282695869,-480.0,0.00028054,5]
[364867649,1749282695884,-480.0,0.00028054,5]
[364867650,1749282695894,-1656.96,0.00028054,5]
[364867651,1749282695905,-1260.39,0.00028054,5]
[364867652,1749282695915,-480.0,0.00028054,5]
[364867653,1749282695927,-915.34,0.00028054,5]
[364867654,1749282695938,-480.0,0.00028054,5]
[364867655,1749282696186,-980.64,0.00028054,5]
[364867656,1749282696203,-3111.73,0.00028054,5]
[364867657,1749282696214,-642.18,0.00028054,5]
[364867658,1749282696225,-1000.0,0.0002807,2]
[364867659,1749282696235,-5187.38,0.000281,2]
[364867660,1749282696246,-208.79538909,0.000281,2]
[364867661,1749282696256,-150.41,0.00028117,2]
[364867662,1749282696266,-150.0,0.00028118,2]
[364867663,1749282696276,-168.3888056,0.00028119,2]
[364867664,1749282696286,-231.28369723,0.00028119,2]
[364867665,1749282696296,-151.0,0.00028143,7]
[364867666,1749282696306,-151.0,0.00028143,7]
[364867667,1749282696316,-151.0,0.00028143,7]
[364867668,1749282696325,-303.39,0.0002815,2]
[364867669,1749282696334,-151.0,0.00028162,7]
[364867670,1749282696343,-151.0,0.00028162,7]
[364867671,1749282696352,-151.0,0.00028162,7]
[364867672,1749282696361,-151.0,0.00028162,7]
[364867673,1749282696369,-151.0,0.00028162,7]
[364867674,1749282696378,-151.0,0.00028162,7]
[364867675,1749282696387,-151.0,0.00028162,7]
[364867676,1749282696397,-151.0,0.00028162,7]
[364867677,1749282696407,-151.0,0.00028162,7]
[364867678,1749282696417,-151.0,0.00028162,7]
[364867679,1749282696427,-151.0,0.00028162,7]
[364867680,1749282696437,-151.0,0.00028162,7]
[364867681,1749282696447,-151.0,0.00028162,7]
[364867682,1749282696458,-562.233048,0.00028162,7]
[364867683,1749282696468,-562.233048,0.00028162,7]
[364867684,1749282696478,-151.0,0.00028162,7]
[364867685,1749282696487,-182.368168,0.00028162,7]
[364867686,1749282696497,-151.0,0.00028162,7]
[364867687,1749282696506,-182.368168,0.00028162,7]
[364867688,1749282696516,-151.0,0.00028162,7]
[364867689,1749282696526,-290.031704,0.00028162,7]
[364867690,1749282696536,-151.0,0.00028162,7]
[364867691,1749282696545,-151.0,0.00028164,7]
[364867692,1749282696555,-151.0,0.00028164,7]
[364867693,1749282696565,-215.742022,0.00028164,7]
[364867694,1749282696575,-151.0,0.00028164,7]
[364867695,1749282696584,-151.0,0.00028164,7]
[364867696,1749282696594,-500.0,0.00028164,7]
[364867697,1749282696604,-151.0,0.00028181,7]
[364867698,1749282696614,-151.0,0.00028181,7]
[364867699,1749282696623,-151.0,0.00028181,7]
[364867700,1749282696633,-151.0,0.00028181,7]
[364867701,1749282696642,-151.0,0.00028181,7]
[364867702,1749282696651,-151.0,0.00028181,7]
[364867703,1749282696666,-151.0,0.00028181,7]
[364867704,1749282696676,-151.0,0.00028181,7]
[364867705,1749282696685,-151.0,0.00028181,7]
[364867706,1749282696695,-202.065599,0.00028181,7]
[364867707,1749282696707,-151.0,0.00028181,7]
[364867708,1749282696716,-151.0,0.00028181,7]
[364867709,1749282696726,-153.285283,0.00028181,7]
[364867710,1749282696736,-151.0,0.00028181,7]
[364867711,1749282696746,-151.0,0.00028181,7]
[364867712,1749282696756,-232.622616,0.00028181,7]
[364867713,1749282696766,-151.0,0.00028181,7]
[364867714,1749282696776,-151.0,0.00028181,7]
[364867715,1749282696786,-182.368168,0.00028181,7]
[364867716,1749282696797,-182.368168,0.00028181,7]
[364867717,1749282696807,-151.0,0.00028181,7]
[364867718,1749282696817,-151.0,0.00028181,7]
[364867719,1749282696826,-711.07,0.000282,2]
[364867720,1749282696837,-372483.51913832,0.000282,2]
[364867721,1749282696846,-2650.25,0.000282,2]
[364867722,1749282696856,-151.0,0.000282,7]
[364867723,1749282696866,-296.442854,0.000282,7]
[364867724,1749282696877,-151.0,0.000282,7]
[364867725,1749282696888,-180.469387,0.000282,7]
[364867726,1749282696899,-151.0,0.000282,7]
[364867727,1749282696909,-151.0,0.000282,7]
[364867728,1749282696920,-151.0,0.000282,7]
[364867729,1749282696931,-151.0,0.000282,7]
[364867730,1749282696940,-151.0,0.000282,7]
[364867731,1749282696951,-151.0,0.000282,7]
[364867732,1749282696963,-151.0,0.000282,7]
[364867733,1749282696973,-151.0,0.000282,7]
[364867734,1749282696983,-151.0,0.000282,7]
[364867735,1749282696993,-151.0,0.000282,7]
[364867736,1749282697003,-687.42033,0.000282,7]
[364867737,1749282697013,-151.0,0.000282,7]
[364867738,1749282697023,-151.0,0.000282,7]
[364867739,1749282697033,-151.0,0.000282,7]
[364867740,1749282697043,-687.42033,0.000282,7]
[364867741,1749282697053,-151.0,0.000282,7]
[364867742,1749282697063,-151.0,0.000282,7]
[364867743,1749282697073,-151.0,0.000282,7]
[364867744,1749282697082,-151.0,0.000282,7]
[364867745,1749282697092,-151.0,0.000282,7]
[364867746,1749282697102,-151.0,0.000282,7]
[364867747,1749282697125,-202.065599,0.000282,7]
[364867748,1749282697135,-151.0,0.000282,7]
[364867749,1749282697146,-151.0,0.000282,7]
[364867750,1749282697157,-151.0,0.000282,7]
[364867751,1749282697167,-151.0,0.000282,7]
[364867752,1749282697177,-151.0,0.000282,7]
[364867753,1749282697188,-151.0,0.000282,7]
[364867754,1749282697198,-151.0,0.000282,7]
[364867755,1749282697209,-151.0,0.000282,7]
[364867756,1749282697220,-562.233048,0.000282,7]
[364867757,1749282697230,-562.233048,0.000282,7]
[364867758,1749282697240,-151.0,0.000282,7]
[364867759,1749282697250,-151.0,0.000282,7]
[364867760,1749282697260,-151.0,0.000282,7]
[364867761,1749282697271,-336.53621,0.000282,7]
[364867762,1749282697281,-336.53621,0.000282,7]
[364867763,1749282697291,-202.3884,0.000282,7]
[364867764,1749282697301,-202.3884,0.000282,7]
[364867765,1749282697311,-117.58633706,0.000282,7]
[364867766,1749282697907,-929.79,0.00027397,5]
[364867767,1749282697917,-480.0,0.00027561,5]
[364867768,1749282697927,-236.34026465,0.00027726,5]
[364867769,1749282698255,-202.192633,0.0002,2]
[364867770,1749282698265,-202.192633,0.00024658,7]
[364867771,1749282698275,-32759.15677362,0.000249,2]
[364867772,1749282698285,-223.088,0.00026805,2]
[364867773,1749282698295,-644.75,0.00027397,5]
[364867774,1749282698304,-202.192633,0.00027397,7]
[364867775,1749282698314,-202.192633,0.00027397,7]
[364867776,1749282698324,-988.0,0.000274,2]
[364867777,1749282698334,-929.79,0.00027561,5]
[364867778,1749282698344,-644.75,0.00027561,5]
[364867779,1749282698354,-723.61973535,0.00027726,5]
[364867780,1749282698364,-480.0,0.00027726,5]
[364867781,1749282698375,-929.79,0.00027726,5]
[364867782,1749282698384,-644.75,0.00027726,5]
[364867783,1749282698395,-480.0,0.0002789,5]
[364867784,1749282698405,-959.96,0.0002789,5]
[364867785,1749282698415,-480.0,0.0002789,5]
[364867786,1749282698425,-929.79,0.0002789,5]
[364867787,1749282698434,-644.75,0.0002789,5]
[364867788,1749282698443,-420.11824629,0.00028054,5]
[364867789,1749282698453,-959.96,0.00028054,5]
[364867790,1749282698462,-480.0,0.00028054,5]
[364867791,1749282698472,-929.79,0.00028054,5]
[364867792,1749282698481,-644.75,0.00028054,5]
[364867793,1749282698491,-82.27641394,0.000282,7]
[364867794,1749282698500,-199.862751,0.000282,7]
[364867795,1749282698510,-151.0,0.000282,7]
[364867796,1749282698519,-151.0,0.000282,7]
[364867797,1749282698529,-225.218056,0.000282,7]
[364867798,1749282698539,-151.0,0.000282,7]
[364867799,1749282698548,-335.472379,0.000282,7]
[364867800,1749282698557,-335.472379,0.000282,7]
[364867801,1749282698567,-151.0,0.000282,7]
[364867802,1749282698577,-154.25564,0.000282,7]
[364867803,1749282698586,-154.25564,0.000282,7]
[364867804,1749282698596,-151.0,0.000282,7]
[364867805,1749282698606,-171.882811,0.000282,7]
[364867806,1749282698616,-171.882811,0.000282,7]
[364867807,1749282698626,-151.0,0.000282,7]
[364867808,1749282698635,-961.409907,0.000282,7]
[364867809,1749282698645,-961.409907,0.000282,7]
[364867810,1749282698655,-153.118461,0.000282,7]
[364867811,1749282698666,-151.0,0.000282,7]
[364867812,1749282698675,-290.774772,0.000282,7]
[364867813,1749282698685,-151.0,0.000282,7]
[364867814,1749282698695,-151.0,0.000282,7]
[364867815,1749282698706,-151.0,0.000282,7]
[364867816,1749282698716,-151.0,0.000282,7]
[364867817,1749282698725,-151.0,0.000282,7]
[364867818,1749282698735,-151.0,0.000282,7]
[364867819,1749282698746,-151.0,0.000282,7]
[364867820,1749282698757,-151.0,0.000282,7]
[364867821,1749282698767,-258.138741,0.000282,7]
[364867822,1749282698776,-258.138741,0.000282,7]
[364867823,1749282698786,-151.0,0.000282,7]
[364867824,1749282698797,-151.0,0.000282,7]
[364867825,1749282698807,-308.719033,0.000282,7]
[364867826,1749282698817,-308.719033,0.000282,7]
[364867827,1749282698827,-1128.633104,0.000282,7]
[364867828,1749282698837,-1128.633104,0.000282,7]
[364867829,1749282698848,-1221.810892,0.000282,7]
[364867830,1749282698857,-1221.810892,0.000282,7]
[364867831,1749282698867,-151.0,0.000282,7]
[364867832,1749282698879,-151.0,0.000282,7]
[364867833,1749282698890,-1106.284742,0.000282,7]
[364867834,1749282698900,-1106.284742,0.000282,7]
[364867835,1749282698909,-151.0,0.000282,7]
[364867836,1749282698919,-153.360077,0.000282,7]
[364867837,1749282698929,-1077.542394,0.000282,7]
[364867838,1749282698940,-1077.542394,0.000282,7]
[364867839,1749282698949,-253.12,0.00028218,2]
[364867840,1749282698960,-93993.07987276,0.00028219,2]
[364867841,1749282698971,-151.0,0.00028219,7]
[364867842,1749282698982,-151.0,0.00028219,7]
[364867843,1749282698992,-151.0,0.00028219,7]
[364867844,1749282699002,-151.0,0.00028219,7]
[364867845,1749282699013,-151.0,0.00028219,7]
[364867846,1749282699022,-151.0,0.00028219,7]
[364867847,1749282699032,-151.0,0.00028219,7]
[364867848,1749282699042,-151.0,0.00028219,7]
[364867849,1749282699051,-207.089752,0.00028219,7]
[364867850,1749282699061,-151.0,0.00028219,7]
[364867851,1749282699070,-151.0,0.00028219,7]
[364867852,1749282699080,-202.065599,0.00028219,7]
[364867853,1749282699089,-151.0,0.00028219,7]
[364867854,1749282699099,-151.0,0.00028219,7]
[364867855,1749282699109,-151.0,0.00028219,7]
[364867856,1749282699119,-151.0,0.00028219,7]
[364867857,1749282699128,-151.0,0.00028219,7]
[364867858,1749282699138,-151.0,0.00028219,7]
[364867859,1749282699147,-151.0,0.00028219,7]
[364867860,1749282699157,-151.0,0.00028219,7]
[364867861,1749282699166,-151.0,0.00028219,7]
[364867862,1749282699176,-151.0,0.00028219,7]
[364867863,1749282699185,-151.0,0.00028219,7]
[364867864,1749282699195,-151.0,0.00028219,7]
[364867865,1749282699204,-151.0,0.00028219,7]
[364867866,1749282699214,-562.233048,0.00028219,7]
[364867867,1749282699224,-562.233048,0.00028219,7]
[364867868,1749282699233,-151.0,0.00028219,7]
[364867869,1749282699243,-182.368168,0.00028219,7]
[364867870,1749282699253,-151.0,0.00028219,7]
[364867871,1749282699263,-182.368168,0.00028219,7]
[364867872,1749282699273,-151.0,0.00028219,7]
[364867873,1749282699283,-235.368653,0.00028219,7]
[364867874,1749282699293,-151.0,0.00028219,7]
[364867875,1749282699538,-151.0,0.00028219,7]
[364867876,1749282699549,-217.422525,0.00028219,7]
[364867877,1749282699561,-283.028488,0.00028219,7]
[364867878,1749282699572,-283.028488,0.00028219,7]
[364867879,1749282699583,-151.0,0.00028219,7]
[364867880,1749282699593,-1715.887585,0.00028219,5]
[364867881,1749282699604,-2102.121321,0.00028219,5]
[364867882,1749282699614,-510.25373153,0.00028219,5]
[364867883,1749282699624,-480.0,0.00028219,5]
[364867884,1749282699635,-480.0,0.00028219,5]
[364867885,1749282699645,-480.0,0.00028219,5]
[364867886,1749282699657,-480.0,0.00028219,5]
[364867887,1749282699667,-480.0,0.00028219,5]
[364867888,1749282699677,-226.37645751,0.00028219,5]
[364867889,1749282699688,-176.36378479,0.00028219,5]
[364867890,1749282699698,-480.0,0.00028219,5]
[364867891,1749282699708,-480.0,0.00028219,5]
[364867892,1749282699717,-480.0,0.00028219,5]
[364867893,1749282699727,-480.0,0.00028219,5]
[364867894,1749282699737,-480.0,0.00028219,5]
[364867895,1749282699746,-189.57425482,0.00028219,5]
[364867896,1749282699757,-443.1717612,0.00028219,5]
[364867897,1749282699768,-495.78,0.00028219,5]
[364867898,1749282699778,-480.0,0.00028219,5]
[364867899,1749282699788,-480.0,0.00028219,5]
[364867900,1749282699797,-486.60473685,0.00028219,5]
[364867901,1749282699806,-480.0,0.00028219,5]
[364867902,1749282699816,-480.0,0.00028219,5]
[364867903,1749282699826,-480.0,0.00028219,5]
[364867904,1749282699835,-499.59754494,0.00028219,5]
[364867905,1749282699846,-480.0,0.00028219,5]
[364867906,1749282699856,-480.0,0.00028219,5]
[364867907,1749282699866,-813.01,0.00028219,5]
[364867908,1749282699877,-165.91465972,0.00028219,5]
[364867909,1749282699889,-480.0,0.00028219,5]
[364867910,1749282699899,-480.0,0.00028219,5]
[364867911,1749282699908,-480.0,0.00028219,5]
[364867912,1749282699918,-480.0,0.00028219,5]
[364867913,1749282699929,-480.0,0.00028219,5]
[364867914,1749282699939,-480.0,0.00028219,5]
[364867915,1749282699949,-480.0,0.00028219,5]
[364867916,1749282699960,-480.0,0.00028219,5]
[364867917,1749282699970,-480.0,0.00028219,5]
[364867918,1749282699980,-480.0,0.00028219,5]
[364867919,1749282699989,-480.0,0.00028219,5]
[364867920,1749282699999,-480.0,0.00028219,5]
[364867921,1749282700009,-480.0,0.00028219,2]
[364867922,1749282700019,-480.0,0.00028219,2]
[364867923,1749282700029,-480.0,0.00028219,5]
[364867924,1749282700039,-577.15,0.00028219,5]
[364867925,1749282700049,-510.74221367,0.00028219,5]
[364867926,1749282700059,-480.0,0.00028219,5]
[364867927,1749282700069,-509.8,0.00028219,5]
[364867928,1749282700078,-494.31641614,0.00028219,5]
[364867929,1749282700087,-480.0,0.00028219,5]
[364867930,1749282700097,-480.0,0.00028219,5]
[364867931,1749282700107,-480.0,0.00028219,2]
[364867932,1749282700117,-480.0,0.00028219,5]
[364867933,1749282700126,-480.0,0.00028219,5]
[364867934,1749282700137,-842.56,0.00028219,5]
[364867935,1749282700147,-480.0,0.00028219,5]
[364867936,1749282700156,-618.47,0.00028219,5]
[364867937,1749282700166,-480.0,0.00028219,5]
[364867938,1749282700176,-489.14961388,0.00028219,5]
[364867939,1749282700186,-480.0,0.00028219,5]